[Event "Final GP Rapid TOP 16 2019"]
[Site "Khanty-Mansijsk"]
[Date "2019.12.01"]
[Round "5.6"]
[White "Pridorozhni, Aleksei"]
[Black "Golubov, Saveliy"]
[Result "0-1"]
[ECO "E87"]
[WhiteElo "2602"]
[BlackElo "2469"]
[Annotator "ChessBase"]
[PlyCount "113"]
[EventDate "2019.12.01"]
[EventType "tourn"]
[EventCountry "RUS"]
[SourceTitle "playchess.com"]
[Source "ChessBase"]
[SourceQuality "1"]
[TimeControl "900+10"]

1. e4 {[%emt 0:00:00]} g6 {[%emt 0:00:00]} 2. d4 {[%emt 0:00:00]} Bg7 {[%emt 0:00:00]} 3. c4 {[%emt 0:00:03]} d6 {[%emt 0:00:00]} 4. Nc3 {[%emt 0:00:02]} Nf6 {[%emt 0:00:00]} 5. f3 {[%emt 0:00:07]} O-O {[%emt 0:00:12]} 6. Be3 {[%emt 0:00:02]} e5 {[%emt 0:00:03]} 7. d5 {[%emt 0:00:11]} c5 {[%emt 0:00:02]} 8. Qd2 {[%emt 0:00:06]} Nh5 {[%emt 0:00:09]} 9. Nge2 {[%emt 0:00:09]} f5 {[%emt 0:01:08]} 10. exf5 {[%emt 0:01:08]} gxf5 {[%emt 0:01:32]} 11. O-O-O {[%emt 0:00:06]} Nd7 {[%emt 0:05:39]} 12. Kb1 {[%emt 0:00:14]} a6 {[%emt 0:00:40]} 13. h3 {[%emt 0:00:50]} Nb6 {[%emt 0:03:18]} 14. b3 {[%emt 0:00:15]} f4 {[%emt 0:00:31]} 15. Bf2 {[%emt 0:00:04]} e4 {[%emt 0:00:01]} 16. Nxe4 {[%emt 0:00:44]} Bf5 {[%emt 0:00:02]} 17. N2c3 {[%emt 0:01:04]} Qf6 {[%emt 0:00:02]} 18. Rc1 {[%emt 0:00:03]} Bxe4+ {[%emt 0:00:43]} 19. fxe4 {[%emt 0:01:04]} Ng3 {[%emt 0:00:11]} 20. Rg1 {[%emt 0:00:30]} Nxf1 {[%emt 0:00:20]} 21. Rgxf1 {[%emt 0:00:01]} Qe5 {[%emt 0:01:50]} 22. Bg1 {[%emt 0:00:43]} Rf7 {[%emt 0:00:00]} 23. Bh2 {[%emt 0:00:07]} Raf8 {[%emt 0:00:01]} 24. Rf3 {[%emt 0:00:03]} Nc8 {[%emt 0:01:24]} 25. a4 {[%emt 0:02:22]} Ne7 {[%emt 0:00:01]} 26. Rcf1 {[%emt 0:00:11]} Ng6 {[%emt 0:00:06]} 27. Kc2 {[%emt 0:00:03]} Qe7 {[%emt 0:00:46]} 28. g3 {[%emt 0:01:59]} Bxc3 {[%emt 0:00:21]} 29. Rxc3 {[%emt 0:00:27]} Qxe4+ {[%emt 0:00:11]} 30. Kb2 {[%emt 0:00:04]} fxg3 {[%emt 0:00:36]} 31. Rxf7 {[%emt 0:00:03]} Rxf7 {[%emt 0:00:04]} 32. Bxg3 {[%emt 0:00:09]} Rf6 {[%emt 0:00:09]} 33. Re3 {[%emt 0:00:17]} Qf5 {[%emt 0:00:01]} 34. a5 {[%emt 0:01:25]} h5 {[%emt 0:00:10]} 35. Qe1 {[%emt 0:00:25]} Kh7 {[%emt 0:00:26]} 36. h4 {[%emt 0:01:14]} Qg4 {[%emt 0:00:10]} 37. Qc3 {[%emt 0:01:26]} Rf7 {[%emt 0:00:10]} 38. Ka3 {[%emt 0:00:12]} Nxh4 {[%emt 0:00:08]} 39. Bxh4 {[%emt 0:00:13]} Qxh4 {[%emt 0:00:01]} 40. Qd3+ {[%emt 0:00:14]} Kg7 {[%emt 0:00:13]} 41. Rg3+ {[%emt 0:00:31]} Kf8 {[%emt 0:00:01]} 42. Qg6 {[%emt 0:00:02]} Qf6 {[%emt 0:00:27]} 43. Qg8+ {[%emt 0:01:30]} Ke7 {[%emt 0:00:00]} 44. Re3+ {[%emt 0:00:02]} Kd7 {[%emt 0:00:01]} 45. Qe8+ {[%emt 0:00:02]} Kc7 {[%emt 0:00:01]} 46. Re1 {[%emt 0:00:02]} h4 {[%emt 0:00:18]} 47. Ka2 {[%emt 0:00:15]} h3 {[%emt 0:00:18]} 48. Re6 {[%emt 0:00:13]} Qg7 {[%emt 0:00:08]} 49. Re2 {[%emt 0:00:08]} Qh7 {[%emt 0:00:20]} 50. Ka3 {[%emt 0:00:50]} Rg7 {[%emt 0:00:13]} 51. Qf8 {[%emt 0:00:06]} Rf7 {[%emt 0:00:04]} 52. Qe8 {[%emt 0:00:02]} Qg7 {[%emt 0:00:12]} 53. Ka2 {[%emt 0:00:05]} Rd7 {[%emt 0:00:10]} 54. Qe6 {[%emt 0:00:23]} Qg3 {[%emt 0:00:15]} 55. Qh6 {[%emt 0:00:03]} Qc3 {[%emt 0:00:10]} 56. Qh4 {[%emt 0:01:14]} Kb8 {[%emt 0:00:05]} 57. Rh2 {[%emt 0:00:42]} 0-1

[Event "Final GP Rapid TOP 16 2019"]
[Site "Khanty-Mansijsk"]
[Date "2019.12.01"]
[Round "5.8"]
[White "Kokarev, Dmitry"]
[Black "Moiseenko, Vadim"]
[Result "1/2-1/2"]
[ECO "B15"]
[WhiteElo "2606"]
[BlackElo "2526"]
[Annotator "ChessBase"]
[PlyCount "69"]
[EventDate "2019.12.01"]
[EventType "tourn"]
[EventCountry "RUS"]
[SourceTitle "playchess.com"]
[Source "ChessBase"]
[SourceQuality "1"]
[TimeControl "900+10"]

1. e4 {[%emt 0:00:00]} c6 {[%emt 0:00:00]} 2. d4 {[%emt 0:00:00]} d5 {[%emt 0:00:00]} 3. Nc3 {[%emt 0:00:00]} dxe4 {[%emt 0:00:00]} 4. Nxe4 {[%emt 0:00:01]} Nf6 {[%emt 0:00:00]} 5. Nxf6+ {[%emt 0:00:04]} exf6 {[%emt 0:00:00]} 6. c3 {[%emt 0:00:04]} Bd6 {[%emt 0:00:28]} 7. Bd3 {[%emt 0:00:03]} O-O {[%emt 0:00:02]} 8. Ne2 {[%emt 0:00:04]} Re8 {[%emt 0:00:08]} 9. Qc2 {[%emt 0:00:08]} h6 {[%emt 0:00:02]} 10. Be3 {[%emt 0:00:33]} Nd7 {[%emt 0:00:03]} 11. O-O {[%emt 0:00:09]} Qc7 {[%emt 0:00:06]} 12. h3 {[%emt 0:00:08]} Nf8 {[%emt 0:00:02]} 13. c4 {[%emt 0:00:37]} b6 {[%emt 0:04:56]} 14. Rad1 {[%emt 0:00:38]} Be6 {[%emt 0:00:03]} 15. c5 {[%emt 0:00:33]} bxc5 {[%emt 0:00:09]} 16. dxc5 {[%emt 0:00:01]} Be7 {[%emt 0:02:30]} 17. Be4 {[%emt 0:00:44]} Rac8 {[%emt 0:02:59]} 18. b4 {[%emt 0:01:28]} a5 {[%emt 0:00:14]} 19. a3 {[%emt 0:00:15]} axb4 {[%emt 0:00:02]} 20. axb4 {[%emt 0:00:02]} Qb8 {[%emt 0:01:09]} 21. Qa4 {[%emt 0:00:28]} Bc4 {[%emt 0:00:31]} 22. Bd3 {[%emt 0:01:48]} Bxd3 {[%emt 0:00:30]} 23. Rxd3 {[%emt 0:00:02]} f5 {[%emt 0:00:05]} 24. Nd4 {[%emt 0:01:38]} f4 {[%emt 0:00:03]} 25. Bd2 {[%emt 0:00:03]} Qc7 {[%emt 0:01:16]} 26. Nf5 {[%emt 0:00:44]} Ne6 {[%emt 0:00:01]} 27. Bc3 {[%emt 0:00:27]} Bf8 {[%emt 0:00:01]} 28. Nd6 {[%emt 0:00:23]} Bxd6 {[%emt 0:00:10]} 29. Rxd6 {[%emt 0:00:01]} f3 {[%emt 0:00:09]} 30. gxf3 {[%emt 0:01:44]} Qe7 {[%emt 0:00:48]} 31. Qc2 {[%emt 0:02:03]} Qg5+ {[%emt 0:00:52]} 32. Kh2 {[%emt 0:00:01]} Qf4+ {[%emt 0:00:23]} 33. Kg2 {[%emt 0:00:01]} Qg5+ {[%emt 0:00:36]} 34. Kh2 {[%emt 0:00:01]} Qf4+ {[%emt 0:00:32]} 35. Kg2 {[%emt 0:00:02]} 1/2-1/2

[Event "Final GP Rapid TOP 16 2019"]
[Site "Khanty-Mansijsk"]
[Date "2019.12.02"]
[Round "6.1"]
[White "Ponkratov, Pavel"]
[Black "Moiseenko, Vadim"]
[Result "1-0"]
[ECO "C45"]
[WhiteElo "2619"]
[BlackElo "2532"]
[Annotator "RC"]
[PlyCount "76"]
[EventDate "2019.12.01"]
[EventType "tourn"]
[EventCountry "RUS"]
[SourceTitle "playchess.com"]
[Source "ChessBase"]
[SourceQuality "1"]
[TimeControl "900+10"]

1. e4 {[%emt 0:00:00]} e5 {[%emt 0:00:06]} 2. Nf3 {[%emt 0:00:02]} Nc6 {[%emt 0:00:03]} 3. d4 {[%emt 0:00:02]} exd4 {[%emt 0:00:04]} 4. Nxd4 {[%emt 0:00:02]} Bc5 {[%emt 0:00:19]} 5. Nb3 {[%emt 0:00:39]} Bb6 {[%emt 0:00:02]} 6. Nc3 {[%emt 0:00:04]} Nge7 {[%emt 0:00:45]} 7. Bd3 {[%emt 0:01:55]} d6 {[%emt 0:00:04]} 8. Qh5 {[%emt 0:00:11]} Nb4 {[%emt 0:01:16]} 9. Bg5 {[%emt 0:01:00]} O-O {[%emt 0:00:24]} 10. O-O-O {[%emt 0:00:29]} Nxd3+ {[%emt 0:01:19]} 11. Rxd3 {[%emt 0:00:02]} f6 {[%emt 0:00:03]} 12. Be3 {[%emt 0:01:27]} Be6 {[%emt 0:00:16]} 13. Nd4 {[%emt 0:00:26]} Bc4 {[%emt 0:00:14]} 14. Rd2 {[%emt 0:00:05]} Bf7 {[%emt 0:00:31]} 15. Qh3 {[%emt 0:01:11]} Re8 {[%emt 0:00:39]} 16. g4 {[%emt 0:00:28]} Ba5 {[%emt 0:01:11]} 17. Nde2 {[%emt 0:00:20]} b5 {[%emt 0:00:46]} 18. Rdd1 {[%emt 0:00:04]} b4 {[%emt 0:00:21]} 19. Nd5 {[%emt 0:01:14]} Nxd5 {[%emt 0:01:59]} 20. exd5 {[%emt 0:00:02]} Qd7 {[%emt 0:00:05]} 21. Qg3 {[%emt 0:00:12]} Re4 {[%emt 0:00:11]} 22. g5 {[%emt 0:00:29]} fxg5 {[%emt 0:00:36]} 23. Rhg1 {[%emt 0:01:24]} h6 {[%emt 0:00:26]} 24. h4 {[%emt 0:01:54]} Rxh4 {[%emt 0:00:36]} 25. f4 {[%emt 0:00:01]} Rh3 {[%emt 0:02:04]} 26. Qf2 {[%emt 0:00:05]} g4 {[%emt 0:00:49]} 27. Bd4 {[%emt 0:00:45]} Bb6 {[%emt 0:00:04]} 28. f5 {[%emt 0:00:02]} Rf3 {[%emt 0:00:20]} 29. Qh4 {[%emt 0:00:03]} Rxf5 {[%emt 0:02:54]} 30. Qxg4 {[%emt 0:00:54]} Bh5 {[%emt 0:01:01]} 31. Qh3 {[%emt 0:00:27]} Raf8 {[%emt 0:00:30]} 32. Rxg7+ Qxg7 33. Bxg7 {[%emt 0:00:28]} Kxg7 {[%emt 0:00:03]} 34. Ng3 {[%emt 0:00:14]} Bg6 {[%emt 0:00:19]} 35. Nxf5+ {[%emt 0:00:08]} Rxf5 {[%emt 0:00:01]} 36. Re1 {[%emt 0:00:11]} h5 {[%emt 0:00:07]} 37. Re2 {[%emt 0:00:19]} Rxd5 {[%emt 0:00:17]} 38. Rg2 {[%emt 0:00:17]} h4 {[%emt 0:00:20]} 1-0

[Event "Final GP Rapid TOP 16 2019"]
[Site "Khanty-Mansijsk"]
[Date "2019.12.02"]
[Round "6.5"]
[White "Morozevich, Alexander"]
[Black "Nesterov, Arseniy"]
[Result "1-0"]
[ECO "D18"]
[WhiteElo "2659"]
[BlackElo "2489"]
[Annotator "RC"]
[PlyCount "117"]
[EventDate "2019.12.01"]
[EventType "tourn"]
[EventCountry "RUS"]
[SourceTitle "playchess.com"]
[Source "ChessBase"]
[SourceQuality "1"]
[TimeControl "900+10"]

1. d4 {[%emt 0:00:00]} d5 {[%emt 0:00:00]} 2. c4 {[%emt 0:00:00]} c6 {[%emt 0:00:00]} 3. Nf3 {[%emt 0:00:00]} Nf6 {[%emt 0:00:00]} 4. Nc3 {[%emt 0:00:00]} dxc4 {[%emt 0:00:06]} 5. a4 {[%emt 0:00:01]} Bf5 {[%emt 0:00:06]} 6. e3 {[%emt 0:00:13]} e6 {[%emt 0:00:04]} 7. Bxc4 {[%emt 0:00:01]} Bb4 {[%emt 0:00:11]} 8. O-O {[%emt 0:00:03]} O-O {[%emt 0:00:12]} 9. h3 {[%emt 0:01:22]} Nbd7 {[%emt 0:01:18]} 10. Nh4 {[%emt 0:00:05]} Nb6 {[%emt 0:00:38]} 11. Bb3 {[%emt 0:00:19]} Nbd5 {[%emt 0:00:27]} 12. Nxf5 {[%emt 0:02:32]} exf5 {[%emt 0:00:14]} 13. Bd2 {[%emt 0:00:42]} Qa5 {[%emt 0:05:56]} 14. Rc1 {[%emt 0:00:44]} Nb6 {[%emt 0:03:10]} 15. Nb1 {[%emt 0:04:43]} Ne4 {[%emt 0:01:27]} 16. Bxb4 {[%emt 0:00:23]} Qxb4 {[%emt 0:00:02]} 17. Nc3 {[%emt 0:00:01]} Rad8 {[%emt 0:01:46]} 18. Nxe4 {[%emt 0:01:10]} fxe4 {[%emt 0:00:02]} 19. Rc5 {[%emt 0:00:22]} g6 {[%emt 0:01:04]} 20. Qc2 {[%emt 0:00:49]} Kg7 {[%emt 0:01:00]} 21. Ra1 {[%emt 0:02:48]} a5 {[%emt 0:00:25]} 22. Re5 {[%emt 0:00:35]} f5 {[%emt 0:00:19]} 23. Qc3 {[%emt 0:00:23]} Rfe8 {[%emt 0:00:10]} 24. Rxa5 {[%emt 0:00:11]} Qxc3 {[%emt 0:00:04]} 25. bxc3 {[%emt 0:00:01]} Ra8 {[%emt 0:00:07]} 26. Rxa8 {[%emt 0:00:06]} Rxa8 {[%emt 0:00:00]} 27. a5 {[%emt 0:00:27]} Nc8 {[%emt 0:00:16]} 28. Ra2 {[%emt 0:00:17]} Nd6 {[%emt 0:00:06]} 29. c4 {[%emt 0:00:11]} Kf6 {[%emt 0:00:07]} 30. Kf1 {[%emt 0:00:13]} Ke7 {[%emt 0:00:15]} 31. Ke2 {[%emt 0:00:02]} Kd7 {[%emt 0:00:04]} 32. Kd2 {[%emt 0:00:07]} Kc7 {[%emt 0:00:02]} 33. Kc3 {[%emt 0:00:01]} Ne8 {[%emt 0:00:31]} 34. g4 {[%emt 0:00:39]} fxg4 {[%emt 0:00:16]} 35. hxg4 {[%emt 0:00:01]} g5 {[%emt 0:00:01]} 36. c5 {[%emt 0:00:59]} Nf6 {[%emt 0:00:06]} 37. Be6 {[%emt 0:00:01]} h6 {[%emt 0:00:17]} 38. Ra1 {[%emt 0:00:12]} Re8 {[%emt 0:00:12]} 39. Bf5 {[%emt 0:00:03]} Ra8 {[%emt 0:00:01]} 40. Kb4 {[%emt 0:00:11]} Rf8 {[%emt 0:00:19]} 41. Kc4 {[%emt 0:00:29]} Ra8 {[%emt 0:00:09]} 42. Rh1 {[%emt 0:00:11]} Rh8 {[%emt 0:00:10]} 43. Rh3 {[%emt 0:00:07]} Kd8 {[%emt 0:00:09]} 44. f3 {[%emt 0:00:17]} exf3 {[%emt 0:00:02]} 45. Rxf3 {[%emt 0:00:01]} h5 {[%emt 0:00:06]} 46. gxh5 {[%emt 0:00:08]} g4 {[%emt 0:00:06]} 47. Rg3 {[%emt 0:00:21]} Rxh5 {[%emt 0:00:05]} 48. e4 {[%emt 0:00:01]} Rg5 {[%emt 0:00:20]} 49. Kd3 {[%emt 0:00:05]} Ke7 {[%emt 0:00:09]} 50. Bc8 {[%emt 0:00:20]} Kd8 {[%emt 0:00:08]} 51. Bxb7 {[%emt 0:00:08]} Kc7 {[%emt 0:00:01]} 52. a6 {[%emt 0:00:04]} Nh5 {[%emt 0:00:03]} 53. Rg1 {[%emt 0:00:01]} g3 {[%emt 0:00:06]} 54. Ke3 {[%emt 0:00:00]} Rg8 {[%emt 0:00:43]} 55. d5 {[%emt 0:00:08]} Nf6 {[%emt 0:00:18]} 56. d6+ {[%emt 0:00:06]} Kb8 {[%emt 0:00:05]} 57. Bxc6 {[%emt 0:00:06]} Ka7 {[%emt 0:00:00]} 58. e5 {[%emt 0:00:09]} Ng4+ {[%emt 0:00:08]} 59. Ke4 1-0

[Event "Final GP Rapid TOP 16 2019"]
[Site "Khanty-Mansijsk"]
[Date "2019.12.02"]
[Round "6.6"]
[White "Potapov, Pavel"]
[Black "Voit, Daria"]
[Result "0-1"]
[ECO "C16"]
[WhiteElo "2489"]
[BlackElo "2336"]
[Annotator "RC"]
[PlyCount "120"]
[EventDate "2019.12.01"]
[EventType "tourn"]
[EventCountry "RUS"]
[SourceTitle "playchess.com"]
[Source "ChessBase"]
[SourceQuality "1"]
[TimeControl "900+10"]

1. e4 {[%emt 0:00:00]} e6 {[%emt 0:00:00]} 2. d4 {[%emt 0:00:00]} d5 {[%emt 0:00:00]} 3. Nc3 {[%emt 0:00:00]} Bb4 {[%emt 0:00:00]} 4. e5 {[%emt 0:00:00]} Ne7 {[%emt 0:00:00]} 5. a3 {[%emt 0:00:08]} Bxc3+ {[%emt 0:00:01]} 6. bxc3 {[%emt 0:00:02]} b6 {[%emt 0:00:12]} 7. Qg4 {[%emt 0:00:23]} Ng6 {[%emt 0:00:00]} 8. h4 {[%emt 0:00:16]} h5 {[%emt 0:00:00]} 9. Qg3 {[%emt 0:00:12]} Ba6 {[%emt 0:00:55]} 10. Bd3 {[%emt 0:00:06]} Bxd3 {[%emt 0:01:03]} 11. cxd3 {[%emt 0:00:02]} c5 {[%emt 0:00:12]} 12. Ne2 {[%emt 0:02:00]} cxd4 {[%emt 0:01:37]} 13. cxd4 {[%emt 0:00:11]} Nc6 {[%emt 0:00:03]} 14. Bg5 {[%emt 0:00:10]} Qd7 {[%emt 0:00:18]} 15. O-O {[%emt 0:00:08]} Nce7 {[%emt 0:00:35]} 16. f3 {[%emt 0:01:53]} Rc8 {[%emt 0:01:52]} 17. a4 {[%emt 0:03:41]} O-O {[%emt 0:04:06]} 18. Qf2 {[%emt 0:00:08]} f6 {[%emt 0:00:27]} 19. exf6 {[%emt 0:00:14]} gxf6 {[%emt 0:00:02]} 20. Bh6 {[%emt 0:00:25]} Rf7 {[%emt 0:00:02]} 21. Nf4 {[%emt 0:02:11]} Nxf4 {[%emt 0:02:35]} 22. Bxf4 {[%emt 0:00:02]} Rg7 {[%emt 0:00:02]} 23. Kh1 {[%emt 0:00:12]} Rc3 {[%emt 0:00:43]} 24. Rfc1 {[%emt 0:03:19]} Rxc1+ {[%emt 0:01:05]} 25. Bxc1 {[%emt 0:00:01]} Nf5 {[%emt 0:00:42]} 26. Bf4 {[%emt 0:00:10]} Qc6 {[%emt 0:00:13]} 27. g4 {[%emt 0:03:04]} hxg4 {[%emt 0:00:09]} 28. fxg4 {[%emt 0:00:01]} Rxg4 {[%emt 0:00:06]} 29. Rg1 {[%emt 0:00:01]} Rxg1+ {[%emt 0:00:13]} 30. Qxg1+ {[%emt 0:00:02]} Kh7 {[%emt 0:00:04]} 31. h5 {[%emt 0:00:05]} Qe8 {[%emt 0:00:02]} 32. Qg4 {[%emt 0:00:21]} Qg8 {[%emt 0:00:41]} 33. Qe2 {[%emt 0:00:42]} Nxd4 {[%emt 0:00:19]} 34. Qb2 {[%emt 0:00:07]} e5 {[%emt 0:00:28]} 35. Be3 {[%emt 0:00:02]} Qg4 {[%emt 0:00:31]} 36. Bxd4 {[%emt 0:00:14]} Qxh5+ {[%emt 0:00:08]} 37. Kg1 {[%emt 0:00:12]} Qg4+ {[%emt 0:00:01]} 38. Kf1 {[%emt 0:00:02]} Qxd4 {[%emt 0:00:06]} 39. Qb5 {[%emt 0:00:06]} a5 {[%emt 0:00:20]} 40. Qd7+ {[%emt 0:00:11]} Kh6 {[%emt 0:00:10]} 41. Ke2 {[%emt 0:00:12]} Kg6 {[%emt 0:01:03]} 42. Qe8+ {[%emt 0:00:04]} Kg5 {[%emt 0:00:05]} 43. Qc6 {[%emt 0:00:30]} f5 {[%emt 0:00:15]} 44. Qc7 {[%emt 0:00:15]} Qb2+ {[%emt 0:00:11]} 45. Kf1 {[%emt 0:00:05]} Kf4 {[%emt 0:00:05]} 46. Qh7 {[%emt 0:00:03]} Qb1+ {[%emt 0:00:21]} 47. Kf2 {[%emt 0:00:09]} Qc2+ {[%emt 0:00:04]} 48. Ke1 {[%emt 0:00:13]} Qc1+ {[%emt 0:00:02]} 49. Kf2 {[%emt 0:00:01]} Qe3+ {[%emt 0:00:12]} 50. Kg2 {[%emt 0:00:02]} Qg3+ {[%emt 0:00:09]} 51. Kh1 {[%emt 0:00:07]} Qxd3 {[%emt 0:00:11]} 52. Qh4+ {[%emt 0:00:08]} Kf3 {[%emt 0:00:02]} 53. Qe1 {[%emt 0:00:27]} e4 {[%emt 0:00:33]} 54. Qg1 {[%emt 0:00:13]} Qe2 {[%emt 0:00:15]} 55. Qg5 {[%emt 0:00:07]} f4 {[%emt 0:00:16]} 56. Qh5+ {[%emt 0:00:15]} Kf2 {[%emt 0:00:05]} 57. Qh2+ {[%emt 0:00:10]} Ke1 {[%emt 0:00:10]} 58. Qh4+ {[%emt 0:00:13]} Qf2 {[%emt 0:00:06]} 59. Qf6 {[%emt 0:00:08]} Kf1 {[%emt 0:00:19]} 60. Qxf4 {[%emt 0:00:07]} Qf3+ {[%emt 0:00:04]} 0-1

[Event "Final GP Rapid TOP 16 2019"]
[Site "Khanty-Mansijsk"]
[Date "2019.12.02"]
[Round "10.5"]
[White "Shimanov, Aleksandr"]
[Black "Shaposhnikov, Evgeny"]
[Result "1-0"]
[ECO "B38"]
[WhiteElo "2587"]
[BlackElo "2568"]
[Annotator "RC"]
[PlyCount "79"]
[EventDate "2019.12.01"]
[EventType "tourn"]
[EventCountry "RUS"]
[SourceTitle "playchess.com"]
[Source "ChessBase"]
[SourceQuality "1"]
[TimeControl "900+10"]

1. c4 {[%emt 0:00:00]} c5 {[%emt 0:00:00]} 2. Nf3 {[%emt 0:00:02]} Nc6 {[%emt 0:00:00]} 3. d4 {[%emt 0:00:03]} cxd4 {[%emt 0:00:00]} 4. Nxd4 {[%emt 0:00:02]} g6 {[%emt 0:00:03]} 5. e4 {[%emt 0:00:09]} Bg7 {[%emt 0:00:02]} 6. Be3 {[%emt 0:00:02]} Nf6 {[%emt 0:00:03]} 7. Nc3 {[%emt 0:00:03]} O-O {[%emt 0:00:15]} 8. Be2 {[%emt 0:00:07]} Nxd4 {[%emt 0:00:25]} 9. Bxd4 {[%emt 0:00:10]} d6 {[%emt 0:00:02]} 10. O-O {[%emt 0:00:11]} Bd7 {[%emt 0:00:01]} 11. h3 {[%emt 0:00:16]} Bc6 {[%emt 0:00:07]} 12. Qc2 {[%emt 0:00:05]} a5 {[%emt 0:00:19]} 13. Rad1 {[%emt 0:00:02]} Nd7 {[%emt 0:00:08]} 14. Bxg7 {[%emt 0:00:05]} Kxg7 {[%emt 0:00:02]} 15. Bg4 {[%emt 0:00:03]} Ne5 {[%emt 0:00:09]} 16. c5 {[%emt 0:00:05]} Nxg4 {[%emt 0:00:41]} 17. hxg4 {[%emt 0:00:04]} Qc8 {[%emt 0:00:26]} 18. cxd6 {[%emt 0:00:55]} exd6 {[%emt 0:02:35]} 19. f3 {[%emt 0:00:44]} Qe6 {[%emt 0:00:28]} 20. Rd4 {[%emt 0:00:18]} Rfd8 {[%emt 0:01:32]} 21. Rfd1 {[%emt 0:00:05]} Qe5 {[%emt 0:00:48]} 22. Qd2 {[%emt 0:01:08]} Qc5 {[%emt 0:00:10]} 23. Qf2 {[%emt 0:02:00]} Qe5 {[%emt 0:01:52]} 24. R4d2 {[%emt 0:02:32]} Rd7 {[%emt 0:00:52]} 25. Nd5 {[%emt 0:00:38]} Bxd5 {[%emt 0:02:21]} 26. Rxd5 {[%emt 0:00:02]} Qe6 {[%emt 0:00:49]} 27. e5 {[%emt 0:00:09]} Ra6 {[%emt 0:01:39]} 28. exd6 {[%emt 0:00:29]} h6 {[%emt 0:00:01]} 29. Qd4+ {[%emt 0:04:25]} Qf6 {[%emt 0:00:03]} 30. Qd2 {[%emt 0:00:01]} a4 {[%emt 0:00:14]} 31. f4 {[%emt 0:00:54]} Rb6 {[%emt 0:00:14]} 32. b4 {[%emt 0:00:11]} axb3 {[%emt 0:00:13]} 33. g5 {[%emt 0:00:06]} hxg5 {[%emt 0:00:14]} 34. fxg5 {[%emt 0:00:02]} Qd8 {[%emt 0:00:01]} 35. Qd4+ {[%emt 0:01:59]} Kg8 {[%emt 0:00:10]} 36. axb3 {[%emt 0:00:02]} Rxb3 {[%emt 0:01:19]} 37. Re1 {[%emt 0:00:04]} Qc8 {[%emt 0:01:13]} 38. Rde5 {[%emt 0:00:33]} Rd8 {[%emt 0:00:10]} 39. Re7 {[%emt 0:00:11]} Rf8 {[%emt 0:01:20]} 40. d7 {[%emt 0:00:03]} 1-0

[Event "Final GP Rapid TOP 16 2019"]
[Site "Khanty-Mansijsk"]
[Date "2019.12.03"]
[Round "11.2"]
[White "Nesterov, Arseniy"]
[Black "Maltsevskaya, Aleksandra"]
[Result "1-0"]
[ECO "D02"]
[WhiteElo "2489"]
[BlackElo "2332"]
[Annotator "ChessBase"]
[PlyCount "73"]
[EventDate "2019.12.01"]
[EventType "tourn"]
[EventCountry "RUS"]
[SourceTitle "playchess.com"]
[Source "ChessBase"]
[SourceQuality "1"]
[TimeControl "900+10"]

1. Nf3 {[%emt 0:00:00]} d5 {[%emt 0:00:16]} 2. d4 {[%emt 0:00:00]} Nf6 {[%emt 0:00:17]} 3. c4 {[%emt 0:00:00]} e6 {[%emt 0:00:15]} 4. g3 {[%emt 0:00:12]} Bb4+ {[%emt 0:00:18]} 5. Bd2 {[%emt 0:00:02]} Bd6 {[%emt 0:00:01]} 6. Qc2 {[%emt 0:00:42]} O-O {[%emt 0:00:32]} 7. Bg2 {[%emt 0:00:02]} b6 {[%emt 0:00:32]} 8. O-O {[%emt 0:00:38]} c6 {[%emt 0:00:52]} 9. Bg5 {[%emt 0:01:22]} Ba6 {[%emt 0:02:02]} 10. Nbd2 {[%emt 0:01:19]} Nbd7 {[%emt 0:06:04]} 11. e4 {[%emt 0:01:47]} dxe4 {[%emt 0:00:02]} 12. Nxe4 {[%emt 0:00:03]} Be7 {[%emt 0:00:01]} 13. Nxf6+ {[%emt 0:00:15]} Bxf6 {[%emt 0:00:25]} 14. Be3 {[%emt 0:01:26]} Rc8 {[%emt 0:01:12]} 15. Qa4 {[%emt 0:01:33]} Nb8 {[%emt 0:00:02]} 16. Bf4 {[%emt 0:01:51]} b5 {[%emt 0:02:25]} 17. Qa3 {[%emt 0:00:05]} b4 {[%emt 0:01:24]} 18. Qxb4 {[%emt 0:00:33]} c5 {[%emt 0:01:01]} 19. dxc5 {[%emt 0:00:19]} Nc6 {[%emt 0:00:02]} 20. Qb3 {[%emt 0:02:18]} Qa5 {[%emt 0:00:24]} 21. Bd6 {[%emt 0:00:18]} Rfd8 {[%emt 0:00:03]} 22. Rfd1 {[%emt 0:00:44]} Be7 {[%emt 0:00:13]} 23. Rac1 {[%emt 0:00:59]} Bxd6 {[%emt 0:00:11]} 24. cxd6 {[%emt 0:00:03]} Rb8 {[%emt 0:00:04]} 25. Qc2 {[%emt 0:00:29]} Nb4 {[%emt 0:00:18]} 26. Qd2 {[%emt 0:00:19]} Qxa2 {[%emt 0:00:07]} 27. c5 {[%emt 0:00:14]} Bc4 {[%emt 0:00:13]} 28. Ra1 {[%emt 0:01:12]} Qb3 {[%emt 0:00:02]} 29. Ra3 {[%emt 0:00:06]} Qc2 {[%emt 0:00:16]} 30. Qxc2 {[%emt 0:00:03]} Nxc2 {[%emt 0:00:01]} 31. Rc3 {[%emt 0:00:27]} Bb3 {[%emt 0:00:20]} 32. c6 {[%emt 0:00:15]} Ne3 {[%emt 0:00:13]} 33. fxe3 {[%emt 0:00:34]} Bxd1 {[%emt 0:00:02]} 34. c7 {[%emt 0:00:01]} Rbc8 {[%emt 0:00:16]} 35. cxd8=Q+ {[%emt 0:00:09]} Rxd8 {[%emt 0:00:01]} 36. Ne5 {[%emt 0:00:16]} f6 {[%emt 0:00:12]} 37. d7 {[%emt 0:00:08]} 1-0